bitfinex/quotes_SOLUSD_20241103
["timestamp","ask_amount","ask_price","bid_price","bid_amount"]
[1730652445952,13.18367674,159.63,159.62,0.3119699]
[1730652446567,28.73997674,159.64,159.62,0.3119699]
[1730652446764,13.18367674,159.63,159.62,0.3119699]
[1730652447667,35.00427674,159.64,159.62,0.3119699]
[1730652450763,21.8206,159.64,159.62,0.3119699]
[1730652450976,15.5563,159.64,159.62,0.3119699]
[1730652455856,21.8204,159.64,159.62,0.3119699]
[1730652456257,30.2700943,159.64,159.62,0.3119699]
[1730652457572,8.4496943,159.63,159.62,0.3119699]
[1730652458153,8.5751843,159.63,159.62,0.3119699]
[1730652459149,14.8395843,159.63,159.62,0.3119699]
[1730652460981,114.4,159.7,159.62,30.7885642]
[1730652461147,24.3545943,159.74,159.65,8.4496943]
[1730652461148,8.4496943,159.72,159.65,8.4496943]
[1730652461351,8.4496943,159.71,159.62,22.2388699]
[1730652461569,0.12549,159.7,159.62,22.2388699]
[1730652461871,8.4496943,159.71,159.62,22.2388699]
[1730652462075,13.19357426,159.71,159.64,13.19357426]
[1730652462466,6.2617,159.7,159.64,19.45747426]
[1730652463168,13.19357426,159.65,159.62,0.3119699]
[1730652463371,13.19357426,159.64,159.62,0.3119699]
[1730652463851,13.19357426,159.65,159.62,0.3119699]
[1730652464465,0.12549,159.64,159.62,0.3119699]
[1730652464668,13.31906426,159.64,159.62,0.3119699]
[1730652465789,43.61132826,159.63,159.62,0.3119699]
[1730652465952,6.2636,159.66,159.62,0.3119699]
[1730652466149,13.19357426,159.64,159.62,0.3119699]
[1730652466870,0.12549,159.63,159.62,0.3119699]
[1730652467173,37.34692826,159.63,159.62,0.3119699]
[1730652467559,70.0,159.64,159.62,0.3119699]
[1730652467560,13.19357426,159.64,159.62,0.3119699]
[1730652467878,19.45777426,159.64,159.62,0.3119699]
[1730652468082,6.2642,159.64,159.62,0.3119699]
[1730652468986,19.45777426,159.64,159.62,0.3119699]
[1730652469176,6.2633,159.66,159.62,0.3119699]
[1730652470354,6.38929,159.65,159.62,0.3119699]
[1730652471569,0.12549,159.66,159.62,0.3119699]
[1730652471957,15.9049,159.68,159.63,13.19357426]
[1730652472163,22.1676,159.68,159.63,13.19357426]
[1730652472488,0.12549,159.67,159.62,35.43244416]
[1730652472665,0.12549,159.64,159.62,0.3119699]
[1730652472862,13.19357426,159.64,159.62,0.3119699]
[1730652473076,0.12549,159.64,159.62,0.3119699]
[1730652473582,6.38959,159.64,159.62,0.3119699]
[1730652474076,13.31906426,159.63,159.62,0.3119699]
[1730652474278,37.34692826,159.63,159.62,0.3119699]
[1730652474870,57.34692826,159.63,159.62,0.3119699]
[1730652475659,80.34402826,159.63,159.62,0.3119699]
[1730652476178,80.44402826,159.63,159.62,0.3119699]
[1730652477169,80.44402826,159.63,159.54,0.3119699]
[1730652477170,70.0,159.57,159.54,0.3119699]
[1730652477370,24.153354,159.56,159.54,0.3119699]
[1730652477765,83.19357426,159.57,159.54,0.3119699]
[1730652477766,30.420954,159.55,159.54,0.3119699]
[1730652478176,43.61452826,159.55,159.54,0.3119699]
[1730652480188,30.420954,159.55,159.54,0.3119699]
[1730652481871,29.82627426,159.56,159.54,0.3119699]
[1730652482184,16.6327,159.56,159.54,0.3119699]
[1730652482368,6.2663,159.59,159.54,13.50554416]
[1730652482700,13.19357426,159.58,159.54,0.3119699]
[1730652483679,24.153354,159.57,159.54,0.3119699]
[1730652483890,86.3686,159.6,159.54,13.50554416]
[1730652483891,29.56217426,159.6,159.54,13.50554416]
[1730652484200,16.3686,159.6,159.55,13.19357426]
[1730652484359,13.19357426,159.63,159.57,13.19357426]
[1730652484567,13.19357426,159.63,159.54,22.2495699]
[1730652484568,16.3686,159.64,159.59,13.19357426]
[1730652484767,0.12549,159.63,159.58,13.19357426]
[1730652485068,13.31906426,159.63,159.57,13.19357426]
[1730652485287,13.19357426,159.63,159.57,13.19357426]
[1730652485687,0.12549,159.62,159.57,13.19357426]
[1730652485860,13.19357426,159.61,159.55,13.19357426]
[1730652486064,6.2651,159.62,159.57,13.19357426]
[1730652486283,6.2651,159.62,159.58,13.19357426]
[1730652486472,6.2651,159.62,159.56,13.19357426]
[1730652486675,24.153354,159.61,159.55,13.19357426]
[1730652486859,37.34692826,159.61,159.55,13.19357426]
[1730652487294,24.153354,159.61,159.57,13.19357426]
[1730652488183,30.418854,159.61,159.57,13.19357426]
[1730652488488,23.902374,159.62,159.58,13.19357426]
[1730652488687,16.3686,159.64,159.59,13.19357426]
[1730652488873,16.3686,159.64,159.58,13.19357426]
[1730652489360,16.3686,159.64,159.59,13.19357426]
[1730652489563,16.3686,159.64,159.6,13.19357426]
[1730652489786,16.3686,159.64,159.59,13.19357426]
[1730652489975,6.2639,159.65,159.6,13.19357426]
[1730652490176,6.2633,159.66,159.61,13.19357426]
[1730652490371,6.2633,159.66,159.62,13.19357426]
[1730652490573,6.2622,159.69,159.64,13.19357426]
[1730652491088,6.2622,159.69,159.6,21.9297]
[1730652491089,19.45577426,159.69,159.62,13.19357426]
[1730652491776,19.45577426,159.69,159.63,6.2644]
[1730652491979,19.45577426,159.69,159.63,19.45797426]
[1730652492273,37.34692826,159.68,159.62,19.45827426]
[1730652492679,6.2622,159.69,159.63,13.19357426]
[1730652492867,19.45487426,159.71,159.65,13.19357426]
[1730652493069,16.3686,159.72,159.66,13.19357426]
[1730652493397,19.45417426,159.73,159.67,13.19357426]
[1730652493889,19.45417426,159.73,159.67,19.45627426]
[1730652494289,0.12549,159.72,159.66,28.85137426]
[1730652494494,37.34692826,159.72,159.66,15.6578]
[1730652495068,37.34692826,159.72,159.66,28.85137426]
[1730652495491,6.2613,159.71,159.66,15.6578]
[1730652495673,24.153354,159.7,159.64,13.19357426]
[1730652496689,37.34692826,159.7,159.64,13.19357426]
[1730652497199,6.2621,159.69,159.64,13.19357426]
[1730652497490,13.19357426,159.68,159.63,15.661]
[1730652498690,13.19357426,159.68,159.63,21.9254]
[1730652499283,13.19357426,159.67,159.63,15.661]
[1730652499489,13.19357426,159.68,159.63,15.661]
[1730652501298,19.45637426,159.68,159.63,15.661]
[1730652502579,6.2628,159.68,159.63,28.85457426]
[1730652503497,19.45637426,159.68,159.63,15.661]
[1730652505102,19.45637426,159.68,159.62,19.45827426]
[1730652505601,15.2543,159.69,159.63,13.19357426]
[1730652505780,28.44787426,159.73,159.67,13.19357426]
[1730652506101,6.2594,159.76,159.71,13.19357426]
[1730652506275,6.259,159.77,159.72,13.19357426]
[1730652506480,6.259,159.77,159.72,19.45437426]
[1730652506887,21.5129,159.78,159.73,13.19357426]
[1730652507184,15.2543,159.78,159.73,13.19357426]
[1730652507387,15.5662699,159.82,159.76,13.19357426]
[1730652507585,0.3119699,159.82,159.79,13.19357426]
[1730652507799,0.3119699,159.82,159.77,13.19357426]
[1730652508297,19.76264416,159.82,159.76,13.19357426]
[1730652508504,19.76264416,159.82,159.73,20.0]
[1730652508505,6.5690699,159.82,159.77,13.19357426]
[1730652508706,0.3119699,159.82,159.77,13.19357426]
[1730652508886,0.3119699,159.82,159.78,13.19357426]
[1730652509199,0.3119699,159.82,159.77,13.19357426]
[1730652509713,0.3119699,159.82,159.81,13.19357426]
[1730652510197,0.3119699,159.82,159.8,13.19357426]
[1730652510399,0.3119699,159.82,159.79,13.19357426]
[1730652510597,0.3119699,159.82,159.8,13.19357426]
[1730652511188,0.3119699,159.82,159.79,19.45157426]
[1730652512100,0.3119699,159.82,159.78,15.6463]
[1730652512306,0.3119699,159.82,159.78,21.9049]
[1730652512606,0.3119699,159.82,159.78,35.09847426]
[1730652513184,6.5690699,159.82,159.77,13.19357426]
[1730652513385,0.3119699,159.82,159.77,13.19357426]
[1730652513911,19.76264416,159.82,159.75,35.10267426]
[1730652514206,0.3119699,159.82,159.8,13.19357426]
[1730652514410,0.3119699,159.82,159.78,13.19357426]
[1730652515783,0.3119699,159.82,159.79,6.2582]
[1730652517196,0.3119699,159.82,159.79,21.9037]
[1730652518710,0.3119699,159.82,159.78,13.19357426]
[1730652518711,13.19357426,159.81,159.75,35.10157426]
[1730652519084,6.5690699,159.82,159.77,13.19357426]
[1730652519279,0.3119699,159.82,159.78,13.19357426]
[1730652520313,0.3119699,159.82,159.79,13.19357426]
[1730652520606,0.3119699,159.82,159.81,19.45097426]
[1730652520808,0.3119699,159.82,159.81,6.2574]
[1730652522203,0.3119699,159.82,159.79,13.19357426]
[1730652523798,0.3119699,159.82,159.8,21.9023]
[1730652526815,0.3119699,159.82,159.81,13.19357426]
[1730652528099,0.3119699,159.82,159.81,19.45097426]
[1730652531424,0.3119699,159.82,159.81,39.45097426]
[1730652533629,0.3119699,159.82,159.81,19.45097426]
[1730652536305,0.3119699,159.82,159.78,6.2585]
[1730652537110,0.3119699,159.82,159.77,21.9061]
[1730652537111,19.76264416,159.82,159.77,21.9061]
[1730652537327,13.19357426,159.8,159.74,35.10367426]
[1730652538125,19.45107426,159.81,159.74,35.10367426]
[1730652538530,19.45107426,159.81,159.75,13.19357426]
[1730652538826,6.2575,159.81,159.75,13.19357426]
[1730652539233,19.45107426,159.81,159.76,6.2593]
[1730652539409,19.45107426,159.81,159.75,6.2597]
[1730652539736,19.45107426,159.81,159.75,35.10267426]
[1730652540211,6.5690699,159.82,159.76,13.19357426]
[1730652540538,0.3119699,159.82,159.78,13.19357426]
[1730652540724,0.3119699,159.82,159.77,13.19357426]
[1730652540933,13.19357426,159.81,159.75,35.10267426]
[1730652541111,13.19357426,159.81,159.75,21.9091]
[1730652541435,19.45107426,159.81,159.75,21.9091]
[1730652542330,19.45107426,159.81,159.75,35.10267426]
[1730652542632,19.45157426,159.8,159.75,21.9091]
[1730652542834,13.19357426,159.79,159.75,21.9091]
[1730652543628,19.45157426,159.8,159.75,21.9091]
[1730652544406,19.45097426,159.81,159.75,21.9091]
[1730652545532,13.19357426,159.8,159.75,21.9091]
[1730652546522,19.82744426,159.81,159.75,21.9091]
[1730652546931,13.19357426,159.8,159.75,21.9091]
[1730652547733,13.19357426,159.81,159.75,35.10267426]
[1730652547943,0.3119699,159.82,159.79,13.19357426]
[1730652548132,0.3119699,159.82,159.75,21.9091]
[1730652548133,0.3119699,159.82,159.81,13.19357426]
[1730652549722,0.3119699,159.82,159.81,19.45097426]
[1730652551622,0.3119699,159.82,159.81,6.2574]
[1730652552028,0.3119699,159.82,159.8,15.6441]
[1730652552257,0.3119699,159.82,159.77,13.19357426]
[1730652552549,0.3119699,159.82,159.78,13.19357426]
[1730652553642,0.3119699,159.82,159.81,6.2574]
[1730652553945,0.3119699,159.82,159.81,19.45097426]
[1730652554321,0.3119699,159.82,159.81,6.2574]
[1730652555133,0.3119699,159.82,159.81,13.19357426]
[1730652556624,0.3119699,159.82,159.79,15.6446]
[1730652562849,0.3119699,159.82,159.79,35.09637426]
[1730652563059,0.3119699,159.82,159.81,13.19357426]
[1730652563745,0.3119699,159.82,159.79,35.09637426]
[1730652567928,0.3119699,159.82,159.77,12.73412005]
[1730652567929,13.50554416,159.82,159.77,12.73412005]
[1730652568153,0.3119699,159.82,159.79,13.19357426]
[1730652569255,0.3119699,159.82,159.78,13.19357426]
[1730652569554,0.3119699,159.82,159.77,35.31639431]
[1730652570833,0.3119699,159.82,159.77,41.57529431]
[1730652571034,13.19357426,159.8,159.77,22.12282005]
[1730652571539,13.19357426,159.81,159.77,15.6474]
[1730652572569,19.45107426,159.81,159.77,15.6474]
[1730652573661,6.2575,159.81,159.77,15.6474]
[1730652574262,13.50554416,159.82,159.78,13.19357426]
[1730652574263,0.3119699,159.82,159.78,13.19357426]
[1730652574452,0.3119699,159.82,159.79,13.19357426]
[1730652574838,0.3119699,159.82,159.78,13.19357426]
[1730652576666,0.3119699,159.82,159.79,6.2582]
[1730652577145,0.3119699,159.82,159.77,28.84097426]
[1730652577351,0.3119699,159.82,159.78,6.2585]
[1730652577746,13.19357426,159.81,159.77,21.9063]
[1730652578846,19.45097426,159.81,159.77,15.6474]
[1730652579544,13.19357426,159.81,159.77,15.6474]
[1730652581363,19.76264416,159.82,159.77,15.6474]
[1730652581543,6.5690699,159.82,159.77,15.6474]
[1730652582047,6.5690699,159.82,159.77,21.9063]
[1730652583563,6.5689699,159.82,159.77,21.9063]
[1730652584160,0.3119699,159.82,159.77,35.09987426]
[1730652584366,0.3119699,159.82,159.78,13.19357426]
[1730652584857,0.3119699,159.82,159.8,13.19357426]
[1730652585064,0.3119699,159.82,159.79,13.19357426]
[1730652585655,0.3119699,159.82,159.8,6.2578]
[1730652586565,0.3119699,159.82,159.77,28.42794563]
[1730652586966,14.99691553,159.82,159.76,21.9077]
[1730652587174,8.42794563,159.8,159.76,21.9077]
[1730652587470,8.42794563,159.81,159.76,21.9077]
[1730652587970,14.99691553,159.82,159.76,21.9077]
[1730652588162,0.3119699,159.82,159.78,13.17470981]
[1730652589774,0.3119699,159.82,159.77,13.17470981]
[1730652590276,0.3119699,159.82,159.78,21.9051]
[1730652591465,19.74377971,159.82,159.77,6.2588]
[1730652591667,13.17470981,159.8,159.76,6.2591]
[1730652591969,13.17470981,159.79,159.75,28.38874467]
[1730652592272,28.40180981,159.8,159.75,28.38874467]
[1730652592958,34.65970981,159.8,159.75,28.38874467]
[1730652597549,19.52137971,159.82,159.76,13.17470981]
[1730652597749,6.3466699,159.82,159.77,13.17470981]
[1730652598377,6.3466699,159.82,159.76,13.17470981]
[1730652598674,0.3119699,159.82,159.78,13.17470981]
[1730652598868,0.3119699,159.82,159.79,13.17470981]
[1730652599870,0.3119699,159.82,159.79,19.43260981]
[1730652600877,0.3119699,159.82,159.79,35.07810981]
[1730652601675,0.3119699,159.82,159.8,13.17470981]
[1730652602384,0.3119699,159.82,159.81,13.17470981]
[1730652602757,0.3119699,159.82,159.81,19.43210981]
[1730652603268,0.3119699,159.82,159.81,63.45997381]
[1730652603452,0.3119699,159.82,159.81,63.55997381]
[1730652606382,0.3119699,159.82,159.81,39.43210981]
[1730652607260,0.3119699,159.82,159.81,6.2574]
[1730652607677,0.3119699,159.82,159.81,19.43210981]
[1730652611167,0.3119699,159.82,159.81,39.43210981]
[1730652611779,0.3119699,159.82,159.81,63.45997381]
[1730652612082,0.3119699,159.82,159.81,63.55997381]
[1730652615488,16.9689699,159.9,159.82,0.22549]
[1730652615689,0.3119699,159.9,159.89,13.17470981]
[1730652615872,0.3119699,159.9,159.89,33.17470981]
[1730652617179,0.3119699,159.9,159.89,39.42890981]
[1730652622077,0.3119699,159.9,159.88,21.8907]
[1730652623993,0.3119699,159.9,159.89,13.17470981]
[1730652624290,0.3119699,159.9,159.88,35.06540981]
[1730652624475,0.3119699,159.9,159.88,21.8907]
[1730652625091,0.3119699,159.9,159.88,35.06540981]
[1730652625306,0.3119699,159.9,159.88,21.8907]
[1730652625589,0.3119699,159.9,159.88,15.6362]
[1730652626179,13.48667971,159.9,159.85,21.895]
[1730652626378,13.17470981,159.89,159.85,21.895]
[1730652626680,0.3119699,159.9,159.85,21.895]
[1730652627469,15.6486,159.85,159.82,6.47473859]
[1730652627699,13.17470981,159.83,159.79,6.2581]
[1730652627887,13.17470981,159.82,159.78,21.904]
[1730652628074,13.17470981,159.81,159.78,15.6455]
[1730652628275,13.17470981,159.82,159.78,15.6455]
[1730652628592,13.17470981,159.82,159.78,21.9041]
[1730652629874,13.17470981,159.82,159.78,15.6455]
[1730652630591,13.17470981,159.81,159.78,15.6455]
[1730652631602,13.17470981,159.82,159.78,15.6455]
[1730652632880,35.38620981,159.85,159.78,35.07880981]
[1730652633293,13.17470981,159.84,159.78,35.07880981]
[1730652634093,15.6486,159.85,159.82,13.17470981]
[1730652634990,15.6486,159.85,159.81,13.17470981]
[1730652635577,15.6486,159.85,159.82,13.17470981]
[1730652637003,15.6486,159.85,159.83,21.8982]
[1730652642301,35.18770981,159.89,159.83,35.07290981]
[1730652642480,15.7871,159.89,159.87,13.17470981]
[1730652642685,0.3119699,159.9,159.87,13.17470981]
[1730652644409,0.3119699,159.9,159.88,6.2546]
[1730652645291,0.3119699,159.9,159.87,15.637]
[1730652645492,0.3119699,159.9,159.87,21.892]
[1730652646421,13.48667971,159.9,159.84,13.17470981]
[1730652646613,13.17470981,159.89,159.83,13.17470981]
[1730652646793,0.3119699,159.9,159.85,13.17470981]
[1730652647404,0.3119699,159.9,159.86,6.2554]
[1730652648000,13.48667971,159.9,159.86,6.2554]
[1730652648219,0.3119699,159.9,159.86,6.2554]
[1730652649917,0.3119699,159.9,159.84,13.17470981]
[1730652650108,0.3119699,159.9,159.82,35.07420981]
[1730652650109,13.17470981,159.88,159.82,35.07420981]
[1730652650616,13.17470981,159.89,159.82,35.07420981]
[1730652651604,13.17470981,159.89,159.83,13.17470981]
[1730652652121,19.42900981,159.89,159.83,13.17470981]
[1730652652306,13.48667971,159.9,159.83,13.17470981]
[1730652652508,13.48667971,159.9,159.84,13.17470981]
[1730652653422,13.48667971,159.9,159.85,21.8954]
[1730652655119,0.3119699,159.9,159.86,13.17470981]
[1730652655305,0.3119699,159.9,159.87,28.81240981]
[1730652655509,13.48667971,159.9,159.84,28.81530981]
[1730652655717,6.5658699,159.9,159.84,28.81530981]
[1730652656024,6.5658699,159.9,159.85,13.17470981]
[1730652656815,6.5658699,159.9,159.86,6.2554]
[1730652657829,6.5658699,159.9,159.85,21.8954]
[1730652658118,6.5658699,159.9,159.85,35.07010981]
[1730652659730,0.3119699,159.9,159.86,13.17470981]
[1730652660231,0.3119699,159.9,159.86,8.42045382]
[1730652660610,0.3119699,159.9,159.87,6.255]
[1730652661206,0.3119699,159.9,159.87,30.31315382]
[1730652661529,0.3119699,159.9,159.88,8.42045382]
[1730652661727,0.3119699,159.9,159.87,30.31315382]
[1730652662109,0.3119699,159.9,159.87,15.6377]
[1730652662305,0.3119699,159.9,159.87,21.8927]
[1730652663834,0.3119699,159.9,159.87,15.6377]
[1730652665520,8.42045382,159.88,159.84,21.8962]
[1730652665714,8.42045382,159.88,159.81,12.73348159]
[1730652665715,8.42045382,159.85,159.81,12.73348159]
[1730652666043,8.42045382,159.84,159.8,21.9013]
[1730652666326,8.42045382,159.86,159.8,21.9013]
[1730652666530,8.42045382,159.86,159.8,30.32175382]
[1730652667042,15.9268,159.88,159.83,8.42045382]
[1730652667217,15.9268,159.88,159.84,8.42045382]
[1730652667531,0.3119699,159.9,159.85,8.42045382]
[1730652667733,14.98632372,159.9,159.84,8.42045382]
[1730652668131,19.72664251,159.9,159.84,13.16077261]
[1730652668838,19.72664251,159.9,159.85,6.2558]
[1730652669617,13.16077261,159.89,159.84,21.8967]
[1730652669821,13.16077261,159.86,159.81,15.6431]
[1730652670635,13.16077261,159.85,159.81,15.6431]
[1730652671338,13.16077261,159.83,159.79,6.47445315]
[1730652671517,13.16077261,159.81,159.79,6.47445315]
[1730652671717,13.16077261,159.82,159.79,6.47445315]
[1730652672236,13.16077261,159.81,159.79,6.47445315]
[1730652672443,13.16077261,159.82,159.77,21.9056]
[1730652672739,19.41747261,159.83,159.77,35.06637261]
[1730652675616,13.16077261,159.82,159.77,21.9056]
[1730652677224,19.41747261,159.83,159.77,21.9056]
[1730652678544,13.16077261,159.82,159.77,21.9056]
[1730652679038,6.2567,159.83,159.77,21.9056]
[1730652679039,13.16077261,159.8,159.77,21.9056]
[1730652679224,13.16077261,159.79,159.77,15.6467]
[1730652680212,13.16077261,159.79,159.74,21.9105]
[1730652680416,13.16077261,159.77,159.74,15.6504]
[1730652680644,13.16077261,159.75,159.72,6.2609]
[1730652680848,13.16077261,159.77,159.72,21.9132]
[1730652681651,16.1129,159.79,159.73,13.16077261]
[1730652682028,29.27367261,159.79,159.73,13.16077261]
[1730652682224,13.16077261,159.78,159.72,28.81307261]
[1730652682837,16.1129,159.79,159.74,13.16077261]
[1730652683054,16.1129,159.79,159.72,15.6523]
[1730652683055,29.27367261,159.79,159.73,13.16077261]
[1730652683759,29.27367261,159.79,159.74,21.9105]
[1730652684453,13.16077261,159.78,159.74,21.9105]
[1730652684658,13.16077261,159.77,159.74,15.6504]
[1730652684836,13.16077261,159.77,159.73,6.2604]
[1730652685445,13.28626261,159.78,159.73,21.9118]
[1730652685647,19.54486261,159.78,159.73,21.9118]
[1730652686736,16.1129,159.79,159.74,13.16077261]
[1730652687446,16.1129,159.79,159.73,28.81217261]
[1730652687652,29.27367261,159.79,159.73,28.81217261]
[1730652688154,16.1129,159.79,159.73,24.08537715]
[1730652688363,16.1129,159.79,159.75,21.9091]
[1730652689769,16.1129,159.79,159.75,15.6494]
[1730652689952,24.54687715,159.79,159.75,15.6494]
[1730652691161,16.1129,159.79,159.75,15.6494]
[1730652691368,16.1129,159.79,159.74,8.43397715]
[1730652692243,24.73547715,159.84,159.78,8.43397715]
[1730652692456,16.3015,159.84,159.8,8.43397715]
[1730652692654,14.68917715,159.87,159.8,8.43397715]
[1730652693463,14.68917715,159.87,159.81,21.9009]
[1730652693664,8.43397715,159.86,159.81,21.9009]
[1730652693866,8.43397715,159.85,159.81,21.9009]
[1730652694343,8.43397715,159.86,159.8,8.43397715]
[1730652696168,16.3015,159.88,159.83,8.43397715]
[1730652696947,0.3119699,159.9,159.85,8.43397715]
[1730652697163,0.3119699,159.9,159.87,8.43397715]
[1730652697962,0.3119699,159.9,159.89,8.43397715]
[1730652698167,0.3119699,159.9,159.89,14.68817715]
[1730652699271,0.3119699,159.9,159.89,34.68817715]
[1730652700149,0.3119699,159.9,159.89,39.40130071]
[1730652700554,0.3119699,159.9,159.89,63.42916471]
[1730652700774,0.3119699,159.9,159.89,63.52916471]
[1730652701167,0.3119699,159.9,159.89,63.42916471]
[1730652701365,0.3119699,159.9,159.89,63.52916471]
[1730652701674,0.3119699,159.9,159.89,63.42916471]
[1730652701881,0.3119699,159.9,159.89,63.52916471]
[1730652702476,0.3119699,159.9,159.89,63.42916471]
[1730652704269,0.3119699,159.9,159.89,63.52916471]
[1730652704581,0.3119699,159.9,159.89,63.42916471]
[1730652706385,0.3119699,159.9,159.89,39.40130071]
[1730652708669,0.3119699,159.9,159.89,63.42916471]
[1730652709575,0.3119699,159.9,159.89,39.40130071]
[1730652709961,0.3119699,159.9,159.89,63.42916471]
[1730652710162,0.3119699,159.9,159.89,63.52916471]
[1730652710877,0.3119699,159.9,159.89,63.42916471]
[1730652711070,0.3119699,159.9,159.89,63.52916471]
[1730652712082,0.3119699,159.9,159.89,63.42916471]
[1730652713987,0.3119699,159.9,159.89,39.40130071]
[1730652720091,0.3119699,159.9,159.89,34.66882865]
[1730652721584,0.3119699,159.9,159.89,58.69669265]
[1730652722581,0.3119699,159.9,159.89,34.66882865]
[1730652724167,0.3119699,159.9,159.89,6.2542]
[1730652724987,0.3119699,159.9,159.88,21.8907]
[1730652725168,8.72659855,159.9,159.85,46.9174]
[1730652725368,0.3119699,159.9,159.86,21.8938]
[1730652726090,0.3119699,159.9,159.86,30.30842865]
[1730652726269,0.3119699,159.9,159.88,8.41462865]
[1730652726470,0.3119699,159.9,159.89,8.41462865]
[1730652726689,0.3119699,159.9,159.88,8.41462865]
[1730652727094,0.3119699,159.9,159.87,8.41462865]
[1730652727491,0.3119699,159.9,159.86,61.58572865]
[1730652728373,0.3119699,159.9,159.88,8.41462865]
[1730652729187,0.3119699,159.9,159.89,8.41462865]
[1730652730179,0.3119699,159.9,159.89,14.66882865]
[1730652732168,0.3119699,159.9,159.89,6.2542]
[1730652733686,0.3119699,159.9,159.88,21.8908]
[1730652734811,0.3119699,159.9,159.88,15.6362]
[1730652736586,16.2039699,159.9,159.88,15.6362]
[1730652737923,24.61859855,159.9,159.87,6.255]
[1730652738412,8.41462865,159.89,159.85,22.11253894]
[1730652738615,8.41462865,159.88,159.85,22.11253894]
[1730652738908,8.41462865,159.87,159.85,6.47333894]
[1730652739111,8.41462865,159.87,159.83,6.2566]
[1730652739691,8.41462865,159.87,159.82,15.6424]
[1730652739692,8.41462865,159.87,159.82,21.8993]
[1730652740191,6.0937,159.88,159.83,8.41462865]
[1730652740381,6.0937,159.88,159.82,30.31392865]
[1730652740609,14.50832865,159.88,159.82,30.31392865]
[1730652741612,6.0937,159.88,159.83,8.41462865]
[1730652741790,24.61859855,159.9,159.84,8.41462865]
[1730652741989,8.41462865,159.89,159.83,8.41462865]
[1730652742299,30.87249855,159.9,159.83,8.41462865]
[1730652743412,30.87249855,159.9,159.84,21.8968]
[1730652744205,8.41462865,159.89,159.84,21.8968]
[1730652745115,30.87249855,159.9,159.84,21.8968]
[1730652745806,8.41462865,159.89,159.84,21.8968]
[1730652747296,8.41462865,159.88,159.84,21.8968]
[1730652747994,24.61859855,159.9,159.84,30.31142865]
[1730652749619,8.41462865,159.89,159.84,21.8968]
[1730652751494,8.41462865,159.89,159.84,15.6406]
[1730652753912,30.87249855,159.9,159.84,21.8968]
[1730652754099,24.61859855,159.9,159.84,21.8968]
[1730652754890,16.2039699,159.9,159.86,8.41462865]
[1730652755115,0.3119699,159.9,159.87,8.41462865]
[1730652756320,0.3119699,159.9,159.89,8.41462865]
[1730652756493,0.3119699,159.9,159.87,30.30702865]
[1730652756698,0.3119699,159.9,159.87,21.8924]
[1730652757495,0.3119699,159.9,159.87,21.8927]
[1730652759093,0.3119699,159.9,159.85,8.41462865]
[1730652760408,0.3119699,159.9,159.86,21.894]
[1730652761618,0.3119699,159.9,159.85,8.41462865]
[1730652761619,6.5658699,159.9,159.85,6.2558]
[1730652761917,8.41462865,159.89,159.84,6.2562]
[1730652763419,6.5658699,159.9,159.85,8.41462865]
[1730652763420,0.3119699,159.9,159.85,8.41462865]
[1730652764299,0.3119699,159.9,159.86,8.41462865]
[1730652765302,0.3119699,159.9,159.87,6.255]
[1730652768310,8.72659855,159.9,159.87,6.255]
[1730652768821,14.98069855,159.9,159.86,15.6379]
[1730652768994,8.41462865,159.89,159.83,36.82465498]
[1730652769200,8.41462865,159.89,159.83,28.41002633]
[1730652769502,8.41462865,159.89,159.83,36.82465498]
[1730652769803,14.66912865,159.89,159.83,36.82465498]
[1730652770399,8.41462865,159.88,159.83,28.41002633]
[1730652775308,8.41462865,159.86,159.83,28.41002633]
[1730652776225,8.41462865,159.86,159.83,22.15372633]
[1730652776525,8.41462865,159.85,159.83,6.51252633]
[1730652776822,8.41462865,159.85,159.82,6.2569]
[1730652777016,8.41462865,159.87,159.82,21.8994]
[1730652777221,15.7384,159.88,159.83,8.41462865]
[1730652777531,15.7384,159.88,159.84,21.8968]
[1730652782302,15.7384,159.88,159.82,8.41462865]
[1730652782837,15.7384,159.88,159.83,8.41462865]
[1730652783721,15.7384,159.88,159.84,6.2562]
[1730652785333,15.7384,159.88,159.84,21.8968]
[1730652786031,0.3119699,159.9,159.85,8.41462865]
[1730652786516,0.3119699,159.9,159.86,30.30862865]
[1730652787529,0.3119699,159.9,159.88,8.41462865]
[1730652787713,0.3119699,159.9,159.89,8.41462865]
[1730652788130,0.3119699,159.9,159.88,8.41462865]
[1730652788624,0.3119699,159.9,159.89,6.2542]
[1730652789628,0.3119699,159.9,159.88,15.6362]
[1730652789831,0.3119699,159.9,159.85,15.6395]
[1730652790040,0.3119699,159.9,159.85,24.05412865]
[1730652790706,0.3119699,159.9,159.85,30.30992865]
[1730652791130,8.41462865,159.89,159.83,8.41462865]
[1730652791328,8.41462865,159.89,159.79,8.41462865]
[1730652791329,8.41462865,159.86,159.79,8.41462865]